fUSD/lending_fUSD_20260323
["ID","MTS","AMOUNT","RATE_DAILY","PERIOD"]
[408795948,1774277472993,-164.5,0.00025,2]
[408795949,1774277473004,-979.16666667,0.00025,30]
[408795950,1774277473014,-933.0,0.00025,2]
[408795951,1774277473026,-473.55254028,0.00025,7]
[408795952,1774277473037,-150.0,0.00025024,4]
[408795953,1774277473047,-500.0,0.00025047,120]
[408795954,1774277473058,-246.70031231,0.00025049,4]
[408795955,1774277473068,-224.40258021,0.00025049,4]
[408795956,1774277473078,-181.69910248,0.00025049,4]
[408795957,1774277473088,-587.48569977,0.00025049,4]
[408795958,1774277473097,-299.63728423,0.00025049,4]
[408795959,1774277473107,-150.53323122,0.00025049,4]
[408795960,1774277473117,-226.32185808,0.00025049,4]
[408795961,1774277473126,-187.4602484,0.00025055,5]
[408795962,1774277473137,-150.0,0.00025065,4]
[408795963,1774277473146,-500.0,0.00025099,2]
[408795964,1774277473156,-1606.46,0.00025124,2]
[408795965,1774277473166,-250.0,0.00025141,6]
[408795966,1774277473176,-150.0,0.00025141,4]
[408795967,1774277473186,-502.0,0.00025143,11]
[408795968,1774277473196,-353.0,0.00025178,2]
[408795969,1774277473205,-500.0,0.0002519,2]
[408795970,1774277473215,-246.70031231,0.0002521,4]
[408795971,1774277473225,-224.40258021,0.0002521,4]
[408795972,1774277473235,-181.69910248,0.0002521,4]
[408795973,1774277473245,-587.48569977,0.0002521,4]
[408795974,1774277473255,-299.63728423,0.0002521,4]
[408795975,1774277473265,-150.53323122,0.0002521,4]
[408795976,1774277473275,-226.32185808,0.0002521,4]
[408795977,1774277473285,-177.05,0.00025247,60]
[408795978,1774277473295,-150.0,0.00025332,4]
[408795979,1774277473305,-246.70031231,0.00025372,4]
[408795980,1774277473316,-224.40258021,0.00025372,4]
[408795981,1774277473326,-181.69910248,0.00025372,4]
[408795982,1774277473337,-587.48569977,0.00025372,4]
[408795983,1774277473347,-299.63728423,0.00025372,4]
[408795984,1774277473357,-150.53323122,0.00025372,4]
[408795985,1774277473367,-226.32185808,0.00025372,4]
[408795986,1774277473378,-150.0,0.00025395,4]
[408795987,1774277473388,-239.0,0.000254,60]
[408795988,1774277473398,-150.0,0.00025434,4]
[408795989,1774277473408,-1387.0,0.00025438,2]
[408795990,1774277473418,-246.70031231,0.00025534,4]
[408795991,1774277473428,-224.40258021,0.00025534,4]
[408795992,1774277473438,-181.69910248,0.00025534,4]
[408795993,1774277473448,-587.48569977,0.00025534,4]
[408795994,1774277473458,-299.63728423,0.00025534,4]
[408795995,1774277473467,-150.53323122,0.00025534,4]
[408795996,1774277473477,-226.32185808,0.00025534,4]
[408795997,1774277473487,-200.19,0.00025548,2]
[408795998,1774277473497,-5000.0,0.00025587,30]
[408795999,1774277473507,-700.0,0.0002559,7]
[408796000,1774277473518,-150.0,0.00025598,4]
[408796001,1774277473532,-150.0,0.00025598,4]
[408796002,1774277473541,-153.6981,0.000256,2]
[408796003,1774277473552,-150.0,0.00025649,4]
[408796004,1774277473564,-246.70031231,0.00025695,4]
[408796005,1774277473574,-224.40258021,0.00025695,4]
[408796006,1774277473585,-181.69910248,0.00025695,4]
[408796007,1774277473596,-587.48569977,0.00025695,4]
[408796008,1774277473606,-299.63728423,0.00025695,4]
[408796009,1774277473616,-150.53323122,0.00025695,4]
[408796010,1774277473626,-226.32185808,0.00025695,4]
[408796011,1774277473636,-503.75933748,0.00025836,2]
[408796012,1774277473646,-185.80653218,0.00025838,60]
[408796013,1774277473656,-150.0,0.00025844,4]
[408796014,1774277473666,-528.0,0.0002585,120]
[408796015,1774277473676,-246.70031231,0.00025857,4]
[408796016,1774277473686,-224.40258021,0.00025857,4]
[408796017,1774277473696,-181.69910248,0.00025857,4]
[408796018,1774277473706,-587.48569977,0.00025857,4]
[408796019,1774277473716,-299.63728423,0.00025857,4]
[408796020,1774277473726,-150.53323122,0.00025857,4]
[408796021,1774277473736,-226.32185808,0.00025857,4]
[408796022,1774277473746,-152.0,0.00025861,2]
[408796023,1774277473756,-1000.0,0.00025864,7]
[408796024,1774277473767,-150.0,0.00025865,4]
[408796025,1774277473778,-1345.0,0.00025873,2]
[408796026,1774277473787,-3515.0,0.00025873,2]
[408796027,1774277473797,-621.0,0.00025873,2]
[408796028,1774277473808,-1044.0,0.00025873,2]
[408796029,1774277473817,-1261.0,0.00025873,2]
[408796030,1774277473828,-415.0,0.00025873,2]
[408796031,1774277473837,-150.0,0.0002589,2]
[408796032,1774277473848,-150.0,0.00025903,4]
[408796033,1774277473858,-604.4050922,0.0002599,2]
[408796034,1774277473868,-150.0,0.00025998,4]
[408796035,1774277473878,-217.74931528,0.00026,2]
[408796036,1774277473888,-27005.76314661,0.00026,10]
[408796037,1774277473898,-213.9,0.00026,2]
[408796038,1774277473908,-979.16666667,0.00026,10]
[408796039,1774277473918,-933.0,0.00026,2]
[408796040,1774277473936,-502.0,0.00026,12]
[408796041,1774277473948,-246.70031231,0.00026018,4]
[408796042,1774277473958,-224.40258021,0.00026018,4]
[408796043,1774277473969,-181.69910248,0.00026018,4]
[408796044,1774277473980,-587.48569977,0.00026018,4]
[408796045,1774277473991,-299.63728423,0.00026018,4]
[408796046,1774277474001,-150.53323122,0.00026018,4]
[408796047,1774277474012,-226.32185808,0.00026018,4]
[408796048,1774277474024,-150.0,0.00026131,4]
[408796049,1774277474034,-150.0,0.00026157,4]
[408796050,1774277474045,-246.70031231,0.0002618,4]
[408796051,1774277474055,-224.40258021,0.0002618,4]
[408796052,1774277474066,-181.69910248,0.0002618,4]
[408796053,1774277474076,-587.48569977,0.0002618,4]
[408796054,1774277474086,-299.63728423,0.0002618,4]
[408796055,1774277474097,-150.53323122,0.0002618,4]
[408796056,1774277474107,-226.32185808,0.0002618,4]
[408796057,1774277474118,-920.39,0.00026181,30]
[408796058,1774277474128,-173.20926422,0.00026211,7]
[408796059,1774277474138,-316.77233318,0.00026218,60]
[408796060,1774277474148,-150.0,0.00026254,4]
[408796061,1774277474158,-500.0,0.00026299,2]
[408796062,1774277474168,-1606.46,0.00026299,2]
[408796063,1774277474178,-791.17789278,0.000263,2]
[408796064,1774277474190,-246.70031231,0.00026341,4]
[408796065,1774277474201,-224.40258021,0.00026341,4]
[408796066,1774277474211,-181.69910248,0.00026341,4]
[408796067,1774277474221,-587.48569977,0.00026341,4]
[408796068,1774277474231,-299.63728423,0.00026341,4]
[408796069,1774277474242,-150.53323122,0.00026341,4]
[408796070,1774277474253,-226.32185808,0.00026341,4]
[408796071,1774277474263,-150.0,0.00026398,4]
[408796072,1774277474273,-150.0,0.00026411,4]
[408796073,1774277474292,-860.64,0.00026424,2]
[408796074,1774277474303,-246.70031231,0.00026503,4]
[408796075,1774277474314,-224.40258021,0.00026503,4]
[408796076,1774277474324,-181.69910248,0.00026503,4]
[408796077,1774277474335,-587.48569977,0.00026503,4]
[408796078,1774277474346,-299.63728423,0.00026503,4]
[408796079,1774277474357,-150.53323122,0.00026503,4]
[408796080,1774277474368,-226.32185808,0.00026503,4]
[408796081,1774277474378,-2000.0,0.000266,2]
[408796082,1774277474390,-246.70031231,0.00026665,4]
[408796083,1774277474400,-224.40258021,0.00026665,4]
[408796084,1774277474411,-181.69910248,0.00026665,4]
[408796085,1774277474422,-587.48569977,0.00026665,4]
[408796086,1774277474433,-299.63728423,0.00026665,4]
[408796087,1774277474444,-150.53323122,0.00026665,4]
[408796088,1774277474454,-226.32185808,0.00026665,4]
[408796089,1774277474465,-150.0,0.00026665,4]
[408796090,1774277474476,-150.0,0.00026665,4]
[408796091,1774277474486,-150.0,0.00026665,4]
[408796092,1774277474497,-150.0,0.00026665,4]
[408796093,1774277474508,-150.0,0.00026665,4]
[408796094,1774277474522,-123630.05041097,0.00026781,2]
[408796095,1774277474534,-5000.0,0.00026781,30]
[408796096,1774277474545,-227.78006868,0.00026802,2]
[408796097,1774277474556,-246.70031231,0.00026826,4]
[408796098,1774277474567,-224.40258021,0.00026826,4]
[408796099,1774277474578,-181.69910248,0.00026826,4]
[408796100,1774277474588,-587.48569977,0.00026826,4]
[408796101,1774277474599,-299.63728423,0.00026826,4]
[408796102,1774277474609,-150.53323122,0.00026826,4]
[408796103,1774277474620,-226.32185808,0.00026826,4]
[408796104,1774277474631,-502.0,0.00026857,13]
[408796105,1774277474641,-150.0,0.00026919,4]
[408796106,1774277474658,-150.0,0.00026931,4]
[408796107,1774277474669,-800.0,0.00026986,120]
[408796108,1774277474680,-800.0,0.00026986,120]
[408796109,1774277474691,-246.70031231,0.00026988,4]
[408796110,1774277474702,-224.40258021,0.00026988,4]
[408796111,1774277474713,-181.69910248,0.00026988,4]
[408796112,1774277474724,-587.48569977,0.00026988,4]
[408796113,1774277474735,-299.63728423,0.00026988,4]
[408796114,1774277474747,-150.53323122,0.00026988,4]
[408796115,1774277474757,-226.32185808,0.00026988,4]
[408796116,1774277474768,-150.0,0.00026998,4]
[408796117,1774277474780,-186.31,0.00026999,2]
[408796118,1774277474791,-250.0,0.00027,2]
[408796119,1774277474803,-747.28321255,0.00027,120]
[408796120,1774277474814,-530.0,0.00027,2]
[408796121,1774277474824,-278.62222136,0.00027,120]
[408796122,1774277474835,-191.36675,0.00027,120]
[408796123,1774277474846,-1000.0,0.00027,3]
[408796124,1774277474857,-1000.0,0.00027,3]
[408796125,1774277474868,-2000.0,0.00027,2]
[408796126,1774277474878,-940.38306172,0.00027,2]
[408796127,1774277474889,-2521.521689,0.0002701,2]
[408796128,1774277474900,-500.0,0.00027047,120]
[408796129,1774277474911,-150.0,0.00027075,4]
[408796130,1774277474923,-3714.26,0.00027123,2]
[408796131,1774277474933,-528.0,0.00027142,120]
[408796132,1774277474944,-246.70031231,0.00027149,4]
[408796133,1774277474956,-224.40258021,0.00027149,4]
[408796134,1774277474967,-181.69910248,0.00027149,4]
[408796135,1774277474977,-587.48569977,0.00027149,4]
[408796136,1774277474989,-299.63728423,0.00027149,4]
[408796137,1774277475003,-150.53323122,0.00027149,4]
[408796138,1774277475014,-226.32185808,0.00027149,4]
[408796139,1774277475026,-150.0,0.00027173,4]
[408796140,1774277475038,-243.01172073,0.00027178,2]
[408796141,1774277475049,-150.0,0.00027185,2]
[408796142,1774277475060,-150.0,0.00027198,4]
[408796143,1774277475071,-150.0,0.00027198,4]
[408796144,1774277475082,-246.70031231,0.00027311,4]
[408796145,1774277475416,-224.40258021,0.00027311,4]
[408796146,1774277475426,-181.69910248,0.00027311,4]
[408796147,1774277475436,-587.48569977,0.00027311,4]
[408796148,1774277475446,-299.63728423,0.00027311,4]
[408796149,1774277475456,-150.53323122,0.00027311,4]
[408796150,1774277475466,-226.32185808,0.00027311,4]
[408796151,1774277475475,-1000.0,0.00027397,2]
[408796152,1774277475485,-1000.0,0.00027397,2]
[408796153,1774277475495,-1000.0,0.00027397,2]
[408796154,1774277475504,-1000.0,0.00027397,2]
[408796155,1774277475515,-1000.0,0.00027397,2]
[408796156,1774277475528,-1000.0,0.00027397,2]
[408796157,1774277475539,-1000.0,0.00027397,2]
[408796158,1774277475548,-1000.0,0.00027397,2]
[408796159,1774277475559,-1000.0,0.00027397,2]
[408796160,1774277475569,-1000.0,0.00027397,2]
[408796161,1774277475579,-1000.0,0.00027397,2]
[408796162,1774277475589,-1000.0,0.00027397,2]
[408796163,1774277475600,-1000.0,0.00027397,2]
[408796164,1774277475610,-1000.0,0.00027397,2]
[408796165,1774277475620,-1000.0,0.00027397,2]
[408796166,1774277475629,-1000.0,0.00027397,2]
[408796167,1774277475639,-1000.0,0.00027397,2]
[408796168,1774277475649,-1000.0,0.00027397,2]
[408796169,1774277475661,-1000.0,0.00027397,2]
[408796170,1774277475671,-1000.0,0.00027397,2]
[408796171,1774277475681,-226.49643247,0.00027397,2]
[408796172,1774277475691,-610.29542458,0.00027397,120]
[408796173,1774277475701,-500.0,0.00027397,2]
[408796174,1774277475712,-276.91835228,0.00027397,7]
[408796175,1774277475722,-522.97,0.00027397,2]
[408796176,1774277475732,-1455.96,0.00027397,2]
[408796177,1774277475742,-1000.0,0.00027397,20]
[408796178,1774277475752,-300.0,0.00027397,2]
[408796179,1774277475762,-151.0,0.00027397,2]
[408796180,1774277475772,-151.0,0.00027397,2]
[408796181,1774277475782,-164.082961,0.00027397,2]
[408796182,1774277475792,-699.95,0.00027397,2]
[408796183,1774277475803,-360.804668,0.00027397,2]
[408796184,1774277475813,-360.804668,0.00027397,2]
[408796185,1774277475822,-360.804668,0.00027397,2]
[408796186,1774277475833,-360.804668,0.00027397,2]
[408796187,1774277475842,-360.804668,0.00027397,2]
[408796188,1774277475852,-360.804668,0.00027397,2]
[408796189,1774277475862,-360.804668,0.00027397,2]
[408796190,1774277475885,-360.804668,0.00027397,2]
[408796191,1774277475899,-360.804668,0.00027397,2]
[408796192,1774277475910,-360.804668,0.00027397,2]
[408796193,1774277475921,-360.804668,0.00027397,2]
[408796194,1774277475932,-360.804668,0.00027397,2]
[408796195,1774277475943,-360.804668,0.00027397,2]
[408796196,1774277475953,-360.804668,0.00027397,2]
[408796197,1774277475964,-360.804668,0.00027397,2]
[408796198,1774277475975,-360.804668,0.00027397,2]
[408796199,1774277475985,-360.804668,0.00027397,2]
[408796200,1774277475995,-360.804668,0.00027397,2]
[408796201,1774277476006,-360.804668,0.00027397,2]
[408796202,1774277476016,-360.804671,0.00027397,2]
[408796203,1774277476026,-151.0,0.00027397,2]
[408796204,1774277476037,-151.0,0.00027397,2]
[408796205,1774277476047,-161.118774,0.00027397,2]
[408796206,1774277476057,-209.511392,0.00027397,2]
[408796207,1774277476067,-209.511392,0.00027397,2]
[408796208,1774277476077,-209.511392,0.00027397,2]
[408796209,1774277476087,-209.511392,0.00027397,2]
[408796210,1774277476096,-209.511392,0.00027397,2]
[408796211,1774277476106,-209.511392,0.00027397,2]
[408796212,1774277476116,-209.511392,0.00027397,2]
[408796213,1774277476127,-209.511392,0.00027397,2]
[408796214,1774277476138,-209.511392,0.00027397,2]
[408796215,1774277476148,-209.511392,0.00027397,2]
[408796216,1774277476158,-209.511392,0.00027397,2]
[408796217,1774277476168,-209.511392,0.00027397,2]
[408796218,1774277476178,-209.511392,0.00027397,2]
[408796219,1774277476188,-209.511392,0.00027397,2]
[408796220,1774277476199,-209.511392,0.00027397,2]
[408796221,1774277476209,-209.511392,0.00027397,2]
[408796222,1774277476220,-209.511392,0.00027397,2]
[408796223,1774277476237,-209.511392,0.00027397,2]
[408796224,1774277476247,-209.511392,0.00027397,2]
[408796225,1774277476258,-209.511394,0.00027397,2]
[408796226,1774277476269,-1820.223715,0.00027397,2]
[408796227,1774277476280,-1820.223715,0.00027397,2]
[408796228,1774277476291,-1820.223715,0.00027397,2]
[408796229,1774277476302,-1820.223715,0.00027397,2]
[408796230,1774277476314,-1820.223715,0.00027397,2]
[408796231,1774277476325,-1820.223715,0.00027397,2]
[408796232,1774277476335,-1820.223715,0.00027397,2]
[408796233,1774277476346,-1820.223715,0.00027397,2]
[408796234,1774277476357,-1820.223715,0.00027397,2]
[408796235,1774277476368,-1820.223715,0.00027397,2]
[408796236,1774277476378,-1820.223715,0.00027397,2]
[408796237,1774277476389,-1820.223715,0.00027397,2]
[408796238,1774277476400,-1820.223715,0.00027397,2]
[408796239,1774277476411,-1820.223715,0.00027397,2]
[408796240,1774277476422,-1820.223715,0.00027397,2]
[408796241,1774277476433,-1820.223715,0.00027397,2]
[408796242,1774277476444,-1820.223715,0.00027397,2]
[408796243,1774277476454,-1820.223715,0.00027397,2]
[408796244,1774277476465,-1820.223715,0.00027397,2]
[408796245,1774277476476,-1820.223712,0.00027397,2]
[408796246,1774277476486,-563.796443,0.00027397,2]
[408796247,1774277476497,-563.796443,0.00027397,2]
[408796248,1774277476507,-563.796443,0.00027397,2]
[408796249,1774277476520,-563.796443,0.00027397,2]
[408796250,1774277476531,-563.796443,0.00027397,2]
[408796251,1774277476542,-563.796443,0.00027397,2]
[408796252,1774277476553,-563.796443,0.00027397,2]
[408796253,1774277476566,-563.796443,0.00027397,2]
[408796254,1774277476577,-563.796443,0.00027397,2]
[408796255,1774277476587,-563.796443,0.00027397,2]
[408796256,1774277476605,-563.796443,0.00027397,2]
[408796257,1774277476617,-563.796443,0.00027397,2]
[408796258,1774277476628,-563.796443,0.00027397,2]
[408796259,1774277476638,-563.796443,0.00027397,2]
[408796260,1774277476650,-563.796443,0.00027397,2]
[408796261,1774277476660,-563.796443,0.00027397,2]
[408796262,1774277476671,-563.796443,0.00027397,2]
[408796263,1774277476681,-563.796443,0.00027397,2]
[408796264,1774277476691,-563.796443,0.00027397,2]
[408796265,1774277476702,-563.796452,0.00027397,2]
[408796266,1774277476713,-943.527393,0.00027397,2]
[408796267,1774277476724,-943.527393,0.00027397,2]
[408796268,1774277476734,-943.527393,0.00027397,2]
[408796269,1774277476744,-943.527393,0.00027397,2]
[408796270,1774277476755,-943.527393,0.00027397,2]
[408796271,1774277476766,-943.527393,0.00027397,2]
[408796272,1774277476777,-943.527393,0.00027397,2]
[408796273,1774277476788,-943.527393,0.00027397,2]
[408796274,1774277476798,-943.527393,0.00027397,2]
[408796275,1774277476808,-943.527393,0.00027397,2]
[408796276,1774277476819,-943.527393,0.00027397,2]
[408796277,1774277476830,-943.527393,0.00027397,2]
[408796278,1774277476841,-943.527393,0.00027397,2]
[408796279,1774277476852,-943.527393,0.00027397,2]
[408796280,1774277476863,-943.527393,0.00027397,2]
[408796281,1774277476874,-943.527393,0.00027397,2]
[408796282,1774277476885,-943.527393,0.00027397,2]
[408796283,1774277476895,-943.527393,0.00027397,2]
[408796284,1774277476907,-943.527393,0.00027397,2]
[408796285,1774277476917,-943.527384,0.00027397,2]
[408796286,1774277476928,-975.502943,0.00027397,2]
[408796287,1774277476939,-975.502943,0.00027397,2]
[408796288,1774277476955,-975.502943,0.00027397,2]
[408796289,1774277476966,-975.502943,0.00027397,2]
[408796290,1774277476977,-975.502943,0.00027397,2]
[408796291,1774277476988,-975.502943,0.00027397,2]
[408796292,1774277476999,-975.502943,0.00027397,2]
[408796293,1774277477010,-975.502943,0.00027397,2]
[408796294,1774277477021,-975.502943,0.00027397,2]
[408796295,1774277477034,-975.502943,0.00027397,2]
[408796296,1774277477045,-975.502943,0.00027397,2]
[408796297,1774277477056,-975.502943,0.00027397,2]
[408796298,1774277477067,-975.502943,0.00027397,2]
[408796299,1774277477079,-975.502943,0.00027397,2]
[408796300,1774277477090,-975.502943,0.00027397,2]
[408796301,1774277477100,-975.502943,0.00027397,2]
[408796302,1774277477111,-975.502943,0.00027397,2]
[408796303,1774277477123,-975.502943,0.00027397,2]
[408796304,1774277477134,-975.502943,0.00027397,2]
[408796305,1774277477145,-975.502939,0.00027397,2]
[408796306,1774277477156,-906.32481,0.00027397,2]
[408796307,1774277477166,-906.32481,0.00027397,2]
[408796308,1774277477177,-906.32481,0.00027397,2]
[408796309,1774277477188,-906.32481,0.00027397,2]
[408796310,1774277477199,-906.32481,0.00027397,2]
[408796311,1774277477211,-906.32481,0.00027397,2]
[408796312,1774277477223,-906.32481,0.00027397,2]
[408796313,1774277477234,-906.32481,0.00027397,2]
[408796314,1774277477246,-906.32481,0.00027397,2]
[408796315,1774277477257,-906.32481,0.00027397,2]
[408796316,1774277477269,-906.32481,0.00027397,2]
[408796317,1774277477284,-906.32481,0.00027397,2]
[408796318,1774277477296,-906.32481,0.00027397,2]
[408796319,1774277477312,-906.32481,0.00027397,2]
[408796320,1774277477324,-906.32481,0.00027397,2]
[408796321,1774277477335,-906.32481,0.00027397,2]
[408796322,1774277477347,-906.32481,0.00027397,2]
[408796323,1774277477359,-906.32481,0.00027397,2]
[408796324,1774277477370,-906.32481,0.00027397,2]
[408796325,1774277477382,-906.324803,0.00027397,2]
[408796326,1774277477393,-31718.84,0.00027397,10]
[408796327,1774277477405,-500.0,0.00027397,5]
[408796328,1774277477416,-167.0,0.00027397,2]
[408796329,1774277477428,-181.90311346,0.00027397,2]
[408796330,1774277477439,-167.0,0.00027397,2]
[408796331,1774277477450,-167.0,0.00027397,2]
[408796332,1774277477462,-167.0,0.00027397,2]
[408796333,1774277477474,-167.0,0.00027397,2]
[408796334,1774277477485,-150.0,0.00027397,5]
[408796335,1774277477496,-150.0,0.00027397,5]
[408796336,1774277477511,-160.95979627,0.00027397,5]
[408796337,1774277477526,-167.0,0.00027397,2]
[408796338,1774277477538,-167.0,0.00027397,2]
[408796339,1774277477549,-154.2338,0.000274,2]
[408796340,1774277477560,-150.0,0.00027426,7]
[408796341,1774277477571,-250.0,0.00027461,9]
[408796342,1774277477582,-150.0,0.00027465,7]
[408796343,1774277477594,-246.70031231,0.00027473,7]
[408796344,1774277477605,-224.40258021,0.00027473,7]
[408796345,1774277477616,-181.69910248,0.00027473,7]
[408796346,1774277477626,-587.48569977,0.00027473,7]
[408796347,1774277477637,-299.63728423,0.00027473,7]
[408796348,1774277477648,-150.53323122,0.00027473,7]
[408796349,1774277477659,-226.32185808,0.00027473,7]
[408796350,1774277477670,-150.0,0.00027485,7]
[408796351,1774277477681,-500.0,0.00027499,120]
[408796352,1774277477692,-1606.46,0.00027499,2]
[408796353,1774277477706,-202.59351306,0.000275,2]
[408796354,1774277477716,-553.35373016,0.000275,2]
[408796355,1774277477727,-185.80653218,0.00027605,60]
[408796356,1774277477738,-246.70031231,0.00027634,7]
[408796357,1774277477749,-224.40258021,0.00027634,7]
[408796358,1774277477759,-181.69910248,0.00027634,7]
[408796359,1774277477770,-587.48569977,0.00027634,7]
[408796360,1774277477785,-299.63728423,0.00027634,7]
[408796361,1774277477795,-150.53323122,0.00027634,7]
[408796362,1774277477806,-226.32185808,0.00027634,7]
[408796363,1774277477817,-470.76119888,0.00027671,30]
[408796364,1774277477828,-150.0,0.0002768,7]
[408796365,1774277477838,-502.0,0.00027714,14]
[408796366,1774277477850,-150.0,0.00027731,7]
[408796367,1774277477860,-700.0,0.00027782,21]
[408796368,1774277477872,-246.70031231,0.00027796,7]
[408796369,1774277477883,-224.40258021,0.00027796,7]
[408796370,1774277477894,-181.69910248,0.00027796,7]
[408796371,1774277477904,-587.48569977,0.00027796,7]
[408796372,1774277477915,-299.63728423,0.00027796,7]
[408796373,1774277477926,-150.53323122,0.00027796,7]
[408796374,1774277477937,-226.32185808,0.00027796,7]
[408796375,1774277477948,-150.0,0.00027895,7]
[408796376,1774277477959,-150.0,0.00027934,7]
[408796377,1774277477970,-392.30099906,0.00027945,30]
[408796378,1774277477982,-250.26820641,0.00027945,5]
[408796379,1774277477993,-250.0,0.00027945,5]
[408796380,1774277478003,-246.70031231,0.00027957,7]
[408796381,1774277478014,-224.40258021,0.00027957,7]
[408796382,1774277478025,-181.69910248,0.00027957,7]
[408796383,1774277478037,-587.48569977,0.00027957,7]
[408796384,1774277478048,-299.63728423,0.00027957,7]
[408796385,1774277478059,-150.53323122,0.00027957,7]
[408796386,1774277478070,-226.32185808,0.00027957,7]
[408796387,1774277478094,-1532.54,0.00027972,2]
[408796388,1774277478106,-150.0,0.00027998,7]
[408796389,1774277478117,-150.0,0.00027998,7]
[408796390,1774277478128,-150.0,0.00027998,7]
[408796391,1774277478138,-160.0,0.00028,2]
[408796392,1774277478149,-702.35902646,0.00028,14]
[408796393,1774277478160,-643.0,0.00028,2]
[408796394,1774277478171,-941.44,0.00028,30]
[408796395,1774277478182,-423.36229287,0.00028,2]
[408796396,1774277478193,-1000.0,0.00028056,21]
[408796397,1774277478204,-316.77233318,0.00028061,60]
[408796398,1774277478215,-246.70031231,0.00028119,7]
[408796399,1774277478226,-224.40258021,0.00028119,7]
[408796400,1774277478238,-181.69910248,0.00028119,7]
[408796401,1774277478248,-587.48569977,0.00028119,7]
[408796402,1774277478259,-299.63728423,0.00028119,7]
[408796403,1774277478270,-150.53323122,0.00028119,7]
[408796404,1774277478281,-226.32185808,0.00028119,7]
[408796405,1774277478292,-5000.0,0.00028125,30]
[408796406,1774277478302,-175.078058,0.00028176,14]
[408796407,1774277478312,-177.05,0.00028178,60]
[408796408,1774277478323,-353.0,0.00028178,2]
[408796409,1774277478334,-150.0,0.00028188,7]
[408796410,1774277478345,-150.0,0.00028264,7]
[408796411,1774277478355,-246.70031231,0.00028281,7]
[408796412,1774277478366,-224.40258021,0.00028281,7]
[408796413,1774277478377,-181.69910248,0.00028281,7]
[408796414,1774277478387,-587.48569977,0.00028281,7]
[408796415,1774277478397,-299.63728423,0.00028281,7]
[408796416,1774277478408,-150.53323122,0.00028281,7]
[408796417,1774277478418,-226.32185808,0.00028281,7]
[408796418,1774277478428,-150.0,0.00028305,7]
[408796419,1774277478443,-313.84079925,0.00028356,30]
[408796420,1774277478455,-503.75933748,0.00028368,2]
[408796421,1774277478465,-178.66416683,0.0002837,120]
[408796422,1774277478475,-1000.0,0.000284,120]
[408796423,1774277478486,-246.70031231,0.00028442,7]
[408796424,1774277478497,-224.40258021,0.00028442,7]
[408796425,1774277478507,-181.69910248,0.00028442,7]
[408796426,1774277478521,-587.48569977,0.00028442,7]
[408796427,1774277478532,-299.63728423,0.00028442,7]
[408796428,1774277478543,-150.53323122,0.00028442,7]
[408796429,1774277478553,-226.32185808,0.00028442,7]
[408796430,1774277478566,-150.0,0.00028442,7]
[408796431,1774277478577,-150.0,0.00028442,7]
[408796432,1774277478588,-200.19,0.00028493,2]
[408796433,1774277478600,-350.0,0.00028493,5]
[408796434,1774277478610,-154.77,0.00028494,120]
[408796435,1774277478621,-528.0,0.00028499,120]
[408796436,1774277478633,-400.0,0.00028521,2]
[408796437,1774277478643,-400.0,0.00028521,2]
[408796438,1774277478654,-319.0,0.00028521,2]
[408796439,1774277478664,-150.0,0.00028531,7]
[408796440,1774277478675,-450.0,0.00028535,2]
[408796441,1774277478685,-450.0,0.00028535,2]
[408796442,1774277478696,-319.0,0.00028535,2]
[408796443,1774277478707,-185.80653216,0.00028538,120]
[408796444,1774277478717,-150.0,0.00028544,2]
[408796445,1774277478727,-502.0,0.00028571,14]
[408796446,1774277478738,-860.64,0.00028587,2]
[408796447,1774277478749,-246.70031231,0.00028604,7]